fUSD/lending_fUSD_20250923
["ID","MTS","AMOUNT","RATE_DAILY","PERIOD"]
[387262435,1758667832726,-500.0,0.00019899,2]
[387262436,1758667832736,-500.0,0.00019899,2]
[387262437,1758667832746,-500.0,0.00019899,2]
[387262438,1758667832756,-200.42908501,0.00019899,2]
[387262439,1758667832766,-122206.42962345,0.000199,2]
[387262440,1758667832890,-590.44763871,0.000199,2]
[387262441,1758667834259,-198.50174261,0.000199,2]
[387262444,1758667838013,-187.45480371,0.00019855,2]
[387262445,1758667838204,-312.54519629,0.00019855,2]
[387262446,1758667838214,-562.00672227,0.00019855,2]
[387262447,1758667838224,-6703.39299523,0.000199,2]
[387262448,1758667838233,-501.3951,0.000199,2]
[387262449,1758667838242,-1000.0,0.000199,2]
[387262450,1758667838251,-33291.6323,0.000199,2]
[387262451,1758667838260,-1343.36358732,0.000199,2]
[387262452,1758667838269,-9508.35953354,0.000199,2]
[387262453,1758667838278,-2500.0,0.000199,2]
[387262454,1758667838288,-161.23326321,0.000199,2]
[387262455,1758667838297,-620.58298205,0.000199,2]
[387262456,1758667838308,-5531.65990167,0.000199,2]
[387262457,1758667838317,-1199.51975677,0.000199,2]
[387262458,1758667838326,-1129.79056872,0.000199,2]
[387262459,1758667838335,-1000.0,0.000199,2]
[387262460,1758667838345,-5051.40118333,0.000199,2]
[387262461,1758667838355,-160.49161374,0.000199,2]
[387262462,1758667838364,-262.03,0.00019956,2]
[387262463,1758667838374,-232.72841762,0.00019971,2]
[387262464,1758667838383,-500.0,0.00019971,2]
[387262465,1758667838393,-297.34822194,0.00019971,2]
[387262466,1758667838403,-500.0,0.00019973,2]
[387262467,1758667838412,-500.0,0.00019973,2]
[387262468,1758667838421,-626.29827616,0.00019973,2]
[387262469,1758667838431,-207.60468916,0.0001999,2]
[387262470,1758667838441,-207.60468916,0.0001999,2]
[387262471,1758667838451,-666.0,0.00019999,2]
[387262472,1758667838460,-300.0,0.00019999,2]
[387262473,1758667838470,-300.0,0.00019999,2]
[387262474,1758667838479,-300.0,0.00019999,2]
[387262475,1758667838489,-217.7767013,0.00019999,2]
[387262476,1758667838498,-158.8725008,0.00019999,2]
[387262477,1758667838507,-155.0,0.00019999,2]
[387262478,1758667838517,-167.2663789,0.00019999,2]
[387262479,1758667838526,-639.68684281,0.00019999,7]
[387262480,1758667838536,-1725.6433645,0.00019999,2]
[387262481,1758667838546,-155.0,0.00019999,2]
[387262482,1758667838555,-150.0,0.00019999,2]
[387262483,1758667838565,-7316.7263694,0.0002,2]
[387262484,1758667838574,-150.0,0.0002,4]
[387262485,1758667838583,-25547696.80054781,0.0002,2]
[387262486,1758667838596,-500.0,0.0002,2]
[387262487,1758667839888,-307.03137504,0.0002,2]
[387262488,1758667839980,-17185.56322539,0.0002,2]
[387262489,1758667839993,-17481.86414196,0.0002,2]
[387262490,1758667840003,-164.12633219,0.0002,2]
[387262491,1758667840013,-150.0,0.0002,4]
[387262492,1758667840023,-150.0,0.0002,4]
[387262493,1758667840032,-150.0,0.0002,4]
[387262494,1758667840042,-150.0,0.0002,4]
[387262495,1758667840052,-150.0,0.0002,4]
[387262496,1758667840061,-150.0,0.0002,4]
[387262497,1758667840071,-150.0,0.0002,4]
[387262498,1758667840080,-150.0,0.0002,4]
[387262499,1758667840090,-150.0,0.0002,4]
[387262500,1758667840099,-150.0,0.0002,4]
[387262501,1758667840109,-4000.0,0.0002,4]
[387262502,1758667840118,-169.65,0.00020271,2]
[387262503,1758667840127,-167.11,0.00020383,2]
[387262504,1758667840137,-1000.0,0.00020521,2]
[387262505,1758667840147,-1000.0,0.00020521,2]
[387262506,1758667840157,-2500.0,0.00020533,2]
[387262507,1758667840167,-300.0,0.00020533,2]
[387262508,1758667840179,-192.20995551,0.00020538,2]
[387262509,1758667840188,-151.0,0.00020538,2]
[387262510,1758667840199,-500.0,0.00020538,2]
[387262511,1758667840207,-380.0,0.00020538,2]
[387262512,1758667840217,-8565.75555911,0.00020538,2]
[387262513,1758667840226,-322.6107,0.00020538,2]
[387262514,1758667840235,-500.0,0.00020538,2]
[387262515,1758667840245,-500.0,0.00020538,2]
[387262516,1758667840255,-672.05518202,0.00020538,2]
[387262517,1758667840265,-1243.57659104,0.00020538,2]
[387262518,1758667840274,-8882.6885148,0.00020593,2]
[387262519,1758667840283,-754.08,0.00020595,2]
[387262520,1758667840293,-9211.34798985,0.00020648,2]
[387262521,1758667840304,-832.15,0.00020766,2]
[387262522,1758667840313,-1364.37934,0.000208,2]
[387262523,1758667840323,-157.27,0.00020986,2]
[387262524,1758667840332,-4000.0,0.00021,4]
[387262525,1758667840342,-472.08794461,0.00021068,2]
[387262526,1758667840352,-1500.0,0.00021068,2]
[387262527,1758667840362,-1352.0,0.00021167,2]
[387262528,1758667840371,-508.36059818,0.00021616,2]
[387262529,1758667840381,-516.64379166,0.00021648,2]
[387262530,1758667840391,-832.15,0.0002171,2]
[387262531,1758667840400,-1364.37933,0.000218,2]
[387262532,1758667840410,-334.5472959,0.00021907,2]
[387262533,1758667840420,-5000.0,0.00021918,2]
[387262534,1758667840429,-516.64379166,0.00022,7]
[387262535,1758667840439,-163.0,0.00022,2]
[387262536,1758667840448,-4000.0,0.00022,4]
[387262537,1758667840458,-19681.44509527,0.00022,7]
[387262538,1758667840471,-8529.62490473,0.00022,7]
[387262539,1758667840481,-165.25,0.00022044,2]
[387262540,1758667840492,-600.0,0.0002211,2]
[387262541,1758667840502,-347.52,0.0002219,2]
[387262542,1758667840511,-163.0,0.00022192,7]
[387262543,1758667840522,-150.0,0.00022218,2]
[387262544,1758667840531,-6567.35,0.00022247,2]
[387262545,1758667840541,-1074.55,0.00022264,2]
[387262546,1758667840550,-153.84,0.00022266,2]
[387262547,1758667840560,-1917.29,0.00022269,2]
[387262548,1758667840569,-5000.0,0.00022281,2]
[387262549,1758667840579,-2000.0,0.000225,2]
[387262550,1758667840588,-832.15,0.00022654,2]
[387262551,1758667840599,-1364.37934,0.000228,2]
[387262552,1758667840608,-4000.0,0.00023,4]
[387262553,1758667840618,-1051.0,0.00023001,2]
[387262554,1758667840628,-163.0,0.00023014,7]
[387262555,1758667840637,-168.0,0.00023152,2]
[387262556,1758667840646,-169.65,0.00023167,2]
[387262557,1758667840655,-1158.91,0.000232,2]
[387262558,1758667840665,-168.0,0.00023202,2]
[387262559,1758667840675,-335.88859924,0.00023276,2]
[387262560,1758667840685,-1289.58892491,0.00023277,2]
[387262561,1758667840695,-1976.72928451,0.00023287,2]
[387262562,1758667840768,-2865.43071549,0.00023287,2]
[387262563,1758667840778,-5000.0,0.00023353,2]
[387262564,1758667840787,-168.0,0.00023395,2]
[387262565,1758667840798,-150.0,0.0002359,2]
[387262566,1758667840808,-28211.07,0.000236,7]
[387262567,1758667840817,-8122.9119372,0.00023622,2]
[387262568,1758667840827,-168.0,0.00023675,2]
[387262569,1758667840837,-152.0,0.00023777,3]
[387262570,1758667840846,-1364.37934,0.000238,2]
[387262571,1758667840855,-4000.0,0.00024,4]
[387262572,1758667840864,-801.0,0.00024,2]
[387262573,1758667840874,-163.0,0.00024164,7]
[387262574,1758667840883,-168.0,0.00024256,2]
[387262575,1758667840893,-196974.25489652,0.00024318,2]
[387262576,1758667840903,-5800.0,0.00024365,2]
[387262577,1758667840912,-3093.77135102,0.00024374,2]
[387262578,1758667840924,-2706.22864898,0.00024374,2]
[387262579,1758667840933,-168.0,0.00024382,2]
[387262580,1758667840943,-5800.0,0.00024382,2]
[387262581,1758667840953,-73951.87152364,0.00024395,2]
[387262582,1758667841003,-123022.38337288,0.00024395,2]
[387262583,1758667841013,-196974.25489652,0.00024411,2]
[387262584,1758667841023,-196974.25489652,0.00024427,2]
[387262585,1758667841033,-36888.00927466,0.0002445,2]
[387262586,1758667841293,-179.14290915,0.0002,2]
[387262587,1758667843106,-1125.4243,0.0002,2]
[387262588,1758667843118,-44955.43917945,0.0002,2]
[387262589,1758667843129,-14373.83610313,0.0002,2]
[387262590,1758667843138,-15937.88995642,0.0002445,2]
[387262591,1758667843211,-144148.35566544,0.0002445,2]
[387262592,1758667843220,-1051.0,0.00024479,2]
[387262593,1758667843230,-196974.25489652,0.00024487,2]
[387262594,1758667843240,-196974.25489652,0.00024493,2]
[387262595,1758667843249,-168.0,0.0002455,2]
[387262596,1758667843258,-500.0,0.00024557,2]
[387262597,1758667843268,-500.0,0.00024557,2]
[387262598,1758667843277,-500.0,0.00024557,2]
[387262599,1758667843287,-500.0,0.00024557,2]
[387262600,1758667843297,-500.0,0.00024557,2]
[387262601,1758667843306,-500.0,0.00024557,2]
[387262602,1758667843316,-500.0,0.00024557,2]
[387262603,1758667843326,-500.0,0.00024557,2]
[387262604,1758667843335,-500.0,0.00024557,2]
[387262605,1758667843345,-500.0,0.00024557,2]
[387262606,1758667843354,-500.0,0.00024557,2]
[387262607,1758667843364,-500.0,0.00024557,2]
[387262608,1758667843373,-500.0,0.00024557,2]
[387262609,1758667843383,-500.0,0.00024557,2]
[387262610,1758667843392,-500.0,0.00024557,2]
[387262611,1758667843402,-500.0,0.00024557,2]
[387262613,1758667843411,-150.0,0.00024632,2]
[387262615,1758667843421,-257.8592701,0.00024634,2]
[387262616,1758667843430,-328.64416778,0.00024636,2]
[387262617,1758667843440,-399.42906545,0.00024637,2]
[387262618,1758667843449,-470.21396313,0.00024639,2]
[387262619,1758667843459,-540.99886081,0.0002464,2]
[387262620,1758667843468,-611.78375848,0.00024642,2]
[387262621,1758667843478,-682.56865616,0.00024644,2]
[387262622,1758667843487,-753.35355383,0.00024645,2]
[387262623,1758667843496,-824.13845151,0.00024647,2]
[387262624,1758667843506,-155.0,0.00024656,2]
[387262625,1758667843516,-300.0,0.00024656,2]
[387262626,1758667843525,-215.17,0.00024657,3]
[387262627,1758667843535,-400.0,0.00024657,3]
[387262628,1758667843544,-400.0,0.00024657,3]
[387262629,1758667843554,-416.73,0.00024657,3]
[387262630,1758667843564,-400.0,0.00024657,3]
[387262631,1758667843573,-400.0,0.00024657,3]
[387262632,1758667843582,-400.0,0.00024657,3]
[387262633,1758667843592,-400.0,0.00024657,3]
[387262634,1758667843601,-400.0,0.00024657,3]
[387262635,1758667843610,-400.0,0.00024657,3]
[387262636,1758667843620,-400.0,0.00024657,3]
[387262637,1758667843629,-400.0,0.00024657,3]
[387262638,1758667843638,-464.90910524,0.00024657,3]
[387262639,1758667843648,-400.0,0.00024657,3]
[387262640,1758667843657,-193.18459134,0.00024657,3]
[387262641,1758667843666,-400.0,0.00024657,3]
[387262642,1758667843675,-400.0,0.00024657,3]
[387262643,1758667843684,-753.49,0.00024657,3]
[387262644,1758667843693,-400.0,0.00024657,3]
[387262645,1758667843703,-400.0,0.00024657,3]
[387262646,1758667843712,-400.0,0.00024657,3]
[387262647,1758667843721,-400.0,0.00024657,3]
[387262648,1758667843730,-400.0,0.00024657,3]
[387262649,1758667843740,-400.0,0.00024657,3]
[387262650,1758667843749,-400.0,0.00024657,3]
[387262651,1758667843759,-400.0,0.00024657,3]
[387262652,1758667843768,-400.0,0.00024657,3]
[387262653,1758667843777,-751.01,0.00024657,3]
[387262654,1758667843786,-400.0,0.00024657,3]
[387262655,1758667843796,-629.28,0.00024657,3]
[387262656,1758667843807,-513.64,0.00024657,3]
[387262657,1758667843817,-400.0,0.00024657,3]
[387262658,1758667843826,-861.95,0.00024657,3]
[387262659,1758667843836,-400.0,0.00024657,3]
[387262660,1758667843846,-400.0,0.00024657,3]
[387262661,1758667843855,-400.0,0.00024657,3]
[387262662,1758667843864,-698.29,0.00024657,3]
[387262663,1758667843876,-400.0,0.00024657,3]
[387262664,1758667843885,-400.0,0.00024657,3]
[387262665,1758667843894,-400.0,0.00024657,3]
[387262666,1758667843904,-400.0,0.00024657,3]
[387262667,1758667843914,-400.0,0.00024657,3]
[387262668,1758667843923,-400.0,0.00024657,3]
[387262669,1758667843933,-400.0,0.00024657,3]
[387262670,1758667843942,-400.0,0.00024657,3]
[387262671,1758667843951,-400.0,0.00024657,3]
[387262672,1758667843960,-400.0,0.00024657,3]
[387262673,1758667843969,-400.0,0.00024657,3]
[387262674,1758667843980,-400.0,0.00024657,3]
[387262675,1758667843989,-400.0,0.00024657,3]
[387262676,1758667843998,-400.0,0.00024657,3]
[387262677,1758667844007,-400.0,0.00024657,3]
[387262678,1758667844016,-400.0,0.00024657,3]
[387262679,1758667844026,-400.0,0.00024657,3]
[387262680,1758667844035,-400.0,0.00024657,3]
[387262681,1758667844045,-400.0,0.00024657,3]
[387262682,1758667844054,-400.0,0.00024657,3]
[387262683,1758667844064,-400.0,0.00024657,3]
[387262684,1758667844073,-400.0,0.00024657,3]
[387262685,1758667844082,-400.0,0.00024657,3]
[387262686,1758667844091,-400.0,0.00024657,3]
[387262687,1758667844100,-405.61,0.00024657,3]
[387262688,1758667844110,-911.38,0.00024657,3]
[387262689,1758667844120,-400.0,0.00024657,3]
[387262690,1758667844130,-400.0,0.00024657,3]
[387262691,1758667844139,-400.0,0.00024657,3]
[387262692,1758667844149,-400.0,0.00024657,3]
[387262693,1758667844158,-400.0,0.00024657,3]
[387262694,1758667844167,-400.0,0.00024657,3]
[387262695,1758667844177,-400.0,0.00024657,3]
[387262696,1758667844186,-400.0,0.00024657,3]
[387262697,1758667844196,-400.0,0.00024657,3]
[387262698,1758667844205,-517.09,0.00024657,3]
[387262699,1758667844214,-400.0,0.00024657,3]
[387262700,1758667844225,-400.0,0.00024657,3]
[387262701,1758667844234,-400.0,0.00024657,3]
[387262702,1758667844244,-400.0,0.00024657,3]
[387262703,1758667844254,-400.0,0.00024657,3]
[387262704,1758667844264,-400.0,0.00024657,3]
[387262705,1758667844273,-441.7,0.00024657,3]
[387262706,1758667844283,-592.52,0.00024657,3]
[387262707,1758667844292,-400.0,0.00024657,3]
[387262708,1758667844302,-400.0,0.00024657,3]
[387262709,1758667844311,-400.0,0.00024657,3]
[387262710,1758667844324,-400.0,0.00024657,3]
[387262711,1758667844334,-400.0,0.00024657,3]
[387262712,1758667844343,-400.0,0.00024657,3]
[387262713,1758667844353,-400.0,0.00024657,3]
[387262714,1758667844363,-400.0,0.00024657,3]
[387262715,1758667844372,-400.0,0.00024657,3]
[387262716,1758667844382,-400.0,0.00024657,3]
[387262717,1758667844391,-400.0,0.00024657,3]
[387262718,1758667844401,-400.0,0.00024657,3]
[387262719,1758667844410,-400.0,0.00024657,3]
[387262720,1758667844419,-400.0,0.00024657,3]
[387262721,1758667844429,-400.0,0.00024657,3]
[387262722,1758667844438,-400.0,0.00024657,3]
[387262723,1758667844447,-400.0,0.00024657,3]
[387262724,1758667844457,-400.0,0.00024657,3]
[387262725,1758667844466,-400.0,0.00024657,3]
[387262726,1758667844476,-400.0,0.00024657,3]
[387262727,1758667844485,-400.0,0.00024657,3]
[387262728,1758667844495,-400.0,0.00024657,3]
[387262729,1758667844505,-400.0,0.00024657,3]
[387262730,1758667844515,-400.0,0.00024657,3]
[387262731,1758667844524,-400.0,0.00024657,3]
[387262732,1758667844534,-400.0,0.00024657,3]
[387262733,1758667844543,-400.0,0.00024657,2]
[387262734,1758667844553,-400.0,0.00024657,3]
[387262735,1758667844562,-400.0,0.00024657,3]
[387262736,1758667844572,-400.0,0.00024657,3]
[387262737,1758667844581,-400.0,0.00024657,3]
[387262738,1758667844590,-400.0,0.00024657,3]
[387262739,1758667844600,-500.0,0.00024657,3]
[387262740,1758667844609,-500.0,0.00024657,3]
[387262741,1758667844619,-500.0,0.00024657,3]
[387262742,1758667844628,-500.0,0.00024657,3]
[387262743,1758667844886,-500.0,0.00024657,3]
[387262744,1758667844897,-500.0,0.00024657,3]
[387262745,1758667844908,-500.0,0.00024657,3]
[387262746,1758667844918,-500.0,0.00024657,3]
[387262747,1758667844927,-500.0,0.00024657,3]
[387262748,1758667844937,-500.0,0.00024657,3]
[387262749,1758667844947,-500.0,0.00024657,3]
[387262750,1758667844957,-500.0,0.00024657,3]
[387262751,1758667844966,-500.0,0.00024657,3]
[387262752,1758667844976,-500.0,0.00024657,3]
[387262753,1758667844986,-500.0,0.00024657,3]
[387262754,1758667844995,-500.0,0.00024657,3]
[387262755,1758667845005,-539.16546456,0.00024657,3]
[387262756,1758667845014,-400.0,0.00024657,3]
[387262757,1758667845024,-400.0,0.00024657,3]
[387262758,1758667845034,-400.0,0.00024657,3]
[387262759,1758667845044,-400.0,0.00024657,3]
[387262760,1758667845053,-400.0,0.00024657,3]
[387262761,1758667845062,-400.0,0.00024657,3]
[387262762,1758667845072,-400.0,0.00024657,3]
[387262763,1758667845082,-400.0,0.00024657,3]
[387262764,1758667845091,-400.0,0.00024657,3]
[387262765,1758667845101,-400.0,0.00024657,3]
[387262766,1758667845110,-400.0,0.00024657,3]
[387262767,1758667845119,-400.0,0.00024657,3]
[387262768,1758667845129,-400.0,0.00024657,3]
[387262769,1758667845138,-400.0,0.00024657,3]
[387262770,1758667845148,-400.0,0.00024657,3]
[387262771,1758667845157,-707.94,0.00024657,3]
[387262772,1758667845166,-400.0,0.00024657,3]
[387262773,1758667845176,-400.0,0.00024657,3]
[387262774,1758667845186,-400.0,0.00024657,3]
[387262775,1758667845195,-400.0,0.00024657,3]
[387262776,1758667845205,-400.0,0.00024657,3]
[387262777,1758667845215,-400.0,0.00024657,3]
[387262778,1758667845225,-400.0,0.00024657,3]
[387262779,1758667845235,-400.0,0.00024657,3]
[387262780,1758667845245,-400.0,0.00024657,3]
[387262781,1758667845254,-400.0,0.00024657,3]
[387262782,1758667845264,-1296.67,0.00024657,3]
[387262783,1758667845273,-400.0,0.00024657,3]
[387262784,1758667845283,-400.0,0.00024657,3]
[387262785,1758667845293,-203.96434266,0.00024657,3]
[387262786,1758667845302,-400.0,0.00024657,3]
[387262787,1758667845312,-400.0,0.00024657,3]
[387262788,1758667845326,-400.0,0.00024657,3]
[387262789,1758667845335,-400.0,0.00024657,3]
[387262790,1758667845345,-400.0,0.00024657,3]
[387262791,1758667845354,-400.0,0.00024657,3]
[387262792,1758667845365,-400.0,0.00024657,3]
[387262793,1758667845374,-400.0,0.00024657,3]
[387262794,1758667845384,-465.91,0.00024657,3]
[387262795,1758667845395,-400.0,0.00024657,3]
[387262796,1758667845405,-400.0,0.00024657,3]
[387262797,1758667845414,-400.0,0.00024657,3]
[387262798,1758667845423,-400.0,0.00024657,3]
[387262799,1758667845433,-400.0,0.00024657,3]
[387262800,1758667845442,-400.0,0.00024657,3]
[387262801,1758667845451,-400.0,0.00024657,3]
[387262802,1758667845460,-400.0,0.00024657,3]
[387262803,1758667845470,-400.0,0.00024657,3]
[387262804,1758667845481,-400.0,0.00024657,3]
[387262805,1758667845491,-400.0,0.00024657,3]
[387262806,1758667845500,-400.0,0.00024657,3]
[387262807,1758667845510,-400.0,0.00024657,3]
[387262808,1758667845519,-300.0,0.00024657,3]
[387262809,1758667845529,-400.0,0.00024657,3]
[387262810,1758667845538,-410.35,0.00024657,3]
[387262811,1758667845547,-400.0,0.00024657,3]
[387262812,1758667845557,-400.0,0.00024657,3]
[387262813,1758667845566,-400.0,0.00024657,3]
[387262814,1758667845576,-409.80951525,0.00024657,3]
[387262815,1758667845585,-400.0,0.00024657,3]
[387262816,1758667845595,-500.0,0.00024657,3]
[387262817,1758667845604,-400.0,0.00024657,3]
[387262818,1758667845614,-500.0,0.00024657,3]
[387262819,1758667845624,-500.0,0.00024657,3]
[387262820,1758667845633,-400.0,0.00024657,3]
[387262821,1758667845643,-400.0,0.00024657,3]
[387262822,1758667845653,-400.0,0.00024657,3]
[387262823,1758667845662,-416.05520675,0.00024657,3]
[387262824,1758667845671,-400.0,0.00024657,3]
[387262825,1758667845680,-400.0,0.00024657,3]
[387262826,1758667845690,-400.0,0.00024657,3]
[387262827,1758667845700,-416.25457812,0.00024657,3]
[387262828,1758667845710,-400.0,0.00024657,3]
[387262829,1758667845719,-400.0,0.00024657,3]
[387262830,1758667845729,-400.0,0.00024657,3]
[387262831,1758667845738,-400.0,0.00024657,3]
[387262832,1758667845747,-564.42,0.00024657,3]
[387262833,1758667845757,-400.0,0.00024657,3]
[387262834,1758667845767,-403.17293013,0.00024657,3]
[387262835,1758667845776,-400.0,0.00024657,3]
[387262836,1758667845786,-400.0,0.00024657,3]
[387262837,1758667845795,-400.0,0.00024657,3]
[387262838,1758667845805,-400.0,0.00024657,3]
[387262839,1758667845815,-1087.1,0.00024657,3]
[387262840,1758667845825,-400.0,0.00024657,3]
[387262841,1758667845834,-400.0,0.00024657,3]
[387262842,1758667845843,-516.64379166,0.00024657,3]
[387262843,1758667845854,-400.0,0.00024657,3]
[387262844,1758667845864,-400.0,0.00024657,3]
[387262845,1758667845875,-400.0,0.00024657,3]
[387262846,1758667845887,-403.152971,0.00024657,3]
[387262847,1758667845903,-400.0,0.00024657,3]
[387262848,1758667845912,-299.96018866,0.00024657,3]
[387262849,1758667845922,-400.0,0.00024657,3]
[387262850,1758667845932,-400.0,0.00024657,3]
[387262851,1758667845941,-400.0,0.00024657,3]
[387262852,1758667845951,-400.0,0.00024657,3]
[387262853,1758667845960,-400.0,0.00024657,3]
[387262854,1758667845970,-400.0,0.00024657,3]
[387262855,1758667845980,-400.0,0.00024657,3]
[387262856,1758667845989,-642.2,0.00024657,3]
[387262857,1758667845999,-499.74654725,0.00024657,3]
[387262858,1758667846008,-400.0,0.00024657,3]
[387262859,1758667846018,-406.02376895,0.00024657,3]
[387262860,1758667846027,-400.0,0.00024657,3]
[387262861,1758667846037,-400.0,0.00024657,3]
[387262862,1758667846046,-400.0,0.00024657,3]
[387262863,1758667846056,-400.0,0.00024657,3]
[387262864,1758667846065,-400.0,0.00024657,3]
[387262865,1758667846074,-501.68709174,0.00024657,3]
[387262866,1758667846083,-400.0,0.00024657,3]
[387262867,1758667846092,-264.52164141,0.00024657,3]
[387262868,1758667846102,-400.0,0.00024657,3]
[387262869,1758667846111,-400.73847051,0.00024657,3]
[387262870,1758667846121,-400.0,0.00024657,3]
[387262871,1758667846130,-400.0,0.00024657,3]
[387262872,1758667846139,-400.0,0.00024657,3]
[387262873,1758667846149,-400.0,0.00024657,3]
[387262874,1758667846158,-400.0,0.00024657,3]
[387262875,1758667846167,-400.0,0.00024657,3]
[387262876,1758667846176,-400.0,0.00024657,3]
[387262877,1758667846186,-400.0,0.00024657,3]
[387262878,1758667846195,-400.0,0.00024657,3]
[387262879,1758667846204,-161.8988428,0.00024657,3]
[387262880,1758667846919,-238.1011572,0.00024657,3]
[387262881,1758667846929,-400.0,0.00024657,3]
[387262882,1758667846938,-400.0,0.00024657,3]
[387262883,1758667846948,-400.0,0.00024657,3]
[387262884,1758667846957,-400.0,0.00024657,3]
[387262885,1758667846966,-400.0,0.00024657,3]
[387262886,1758667846975,-221.01006794,0.00024657,3]
[387262887,1758667846984,-400.0,0.00024657,3]
[387262888,1758667846994,-400.0,0.00024657,3]
[387262889,1758667847003,-400.0,0.00024657,3]
[387262890,1758667847012,-400.0,0.00024657,3]
[387262891,1758667847022,-400.0,0.00024657,3]
[387262892,1758667847031,-400.0,0.00024657,3]
[387262893,1758667847040,-400.0,0.00024657,3]
[387262894,1758667847049,-400.0,0.00024657,3]
[387262895,1758667847060,-400.0,0.00024657,3]
[387262896,1758667847069,-400.0,0.00024657,3]
[387262897,1758667847079,-400.0,0.00024657,3]
[387262898,1758667847089,-400.0,0.00024657,3]
[387262899,1758667847098,-400.0,0.00024657,3]
[387262900,1758667847108,-400.0,0.00024657,3]
[387262901,1758667847117,-63.80071206,0.00024657,3]
[387264804,1758667872778,-240.7152486,0.00019855,2]
[387264805,1758667874950,-204.17698324,0.00019855,2]
[387264806,1758667878288,-55.10776816,0.00019855,2]
[387264807,1758667878315,-116.83027287,0.00019855,2]
[387264808,1758667881894,-346.43848851,0.00019855,2]
[387264809,1758667886130,-36.73123862,0.00019855,2]
[387264810,1758667886157,-137.74512021,0.00019855,2]
[387264811,1758667889936,-209.20380122,0.00019855,2]
[387264812,1758667903146,-288.00937959,0.00019855,2]
[387264813,1758667907332,-12.54450446,0.00019855,2]
[387264814,1758667907364,-242.24552281,0.00019855,2]
[387264815,1758667909407,-195.0,0.00019855,2]
[387264816,1758667912001,-7.64670903,0.00019855,2]
[387264817,1758667912028,-183.91969736,0.00019855,2]
[387264818,1758667914643,-152.11,0.00019855,2]
[387264819,1758667918312,-182.45277338,0.00019855,2]
[387264820,1758667918340,-13.80522154,0.00019855,2]
[387264821,1758667926385,-182.62377824,0.00019855,2]
[387264822,1758667928042,-172.95040608,0.00019855,2]
[387264823,1758667930057,-157.47735981,0.00019855,2]
[387264824,1758667930081,-90.04638407,0.000199,2]
[387264825,1758667932094,-164.45581568,0.00019855,2]
[387264826,1758667935203,-182.80790998,0.00019855,2]
[387264827,1758667937942,-152.73627434,0.00019855,2]
[387264828,1758667937969,-136.9501773,0.00019855,2]
[387264829,1758667940117,-161.07934839,0.00019855,2]
[387264830,1758667944949,-37.53364981,0.00019855,2]
[387264831,1758667944974,-163.37139681,0.000199,2]
[387264832,1758667947698,-153.10796383,0.000199,2]
[387264833,1758667950673,-225.02136055,0.00019855,2]
[387264834,1758667952883,-304.59865236,0.000199,2]
[387264835,1758667954290,-162.51864438,0.00019899,2]
[387264836,1758667957683,-258.70897033,0.00019899,2]
[387264837,1758667962669,-78.77238529,0.00019899,2]
[387264838,1758667962698,-77.34035634,0.00019899,2]
[387264839,1758667964783,-186.53307881,0.00019899,2]
[387264840,1758667971326,-170.29097233,0.00019899,2]